[Event "IM Marmaris Karia IX 2019"]
[Site "Marmaris"]
[Date "2019.08.25"]
[Round "8.4"]
[White "Benidze, Davit"]
[Black "Oney, Feridun"]
[Result "1-0"]
[ECO "A44"]
[WhiteElo "2440"]
[BlackElo "2054"]
[Annotator "NA"]
[PlyCount "55"]
[EventDate "2019.08.24"]
[EventType "schev"]
[EventCountry "TUR"]
[SourceTitle "playchess.com"]
[Source "ChessBase"]
[SourceQuality "1"]
[TimeControl "5400+30"]

1. d4 {[%emt 0:00:30]} c5 {[%emt 0:00:30]} 2. d5 {[%emt 0:00:00]} e5 {[%emt 0:00:30]} 3. Nc3 {[%emt 0:00:00]} d6 {[%emt 0:00:00]} 4. e4 {[%emt 0:00:00]} Be7 {[%emt 0:01:00]} 5. Nf3 {[%emt 0:01:00]} Bg4 {[%emt 0:00:30]} 6. h3 {[%emt 0:06:30]} Bxf3 {[%emt 0:01:30]} 7. Qxf3 {[%emt 0:00:30]} Bg5 {[%emt 0:02:30]} 8. Bxg5 {[%emt 0:00:30]} Qxg5 {[%emt 0:00:30]} 9. Nb5 {[%emt 0:05:30]} Qd8 {[%emt 0:00:30]} 10. Qg4 {[%emt 0:00:00]} Kf8 $16 {[%emt 0:02:30]} 11. Nxd6 {[%emt 0:13:00]} Nf6 {[%emt 0:01:30]} 12. Qc8 {[%emt 0:03:30]} Qxc8 {[%emt 0:00:30]} 13. Nxc8 {[%emt 0:00:00]} Nxe4 {[%emt 0:01:30]} 14. Bd3 {[%emt 0:00:00]} Na6 {[%emt 0:01:30]} 15. Bxe4 {[%emt 0:02:30]} Rxc8 {[%emt 0:00:00]} 16. d6 {[%emt 0:01:30]} Rb8 {[%emt 0:06:00]} 17. O-O-O {[%emt 0:00:30]} g6 {[%emt 0:00:30]} 18. Rhe1 {[%emt 0:04:30]} f6 {[%emt 0:04:30]} 19. f4 {[%emt 0:00:30]} exf4 {[%emt 0:01:30]} 20. Bxb7 {[%emt 0:01:30]} Rxb7 {[%emt 0:00:30]} 21. d7 {[%emt 0:00:00]} Kf7 {[%emt 0:01:30]} 22. d8=Q {[%emt 0:00:00]} Rxd8 {[%emt 0:00:00]} 23. Rxd8 {[%emt 0:00:30]} Rc7 {[%emt 0:00:00]} 24. a3 {[%emt 0:03:30]} c4 {[%emt 0:02:30]} 25. Re4 {[%emt 0:00:30]} g5 {[%emt 0:00:30]} 26. Rdd4 {[%emt 0:00:30]} c3 {[%emt 0:00:30]} 27. b4 {[%emt 0:00:30]} f5 {[%emt 0:00:30]} 28. Re5 {[%emt 0:00:00]} 1-0

[Event "IM Marmaris Karia IX 2019"]
[Site "Marmaris"]
[Date "2019.08.25"]
[Round "8.5"]
[White "Annageldyev, Orazly"]
[Black "Kirilmaz, Emre"]
[Result "1/2-1/2"]
[ECO "B04"]
[WhiteElo "2342"]
[BlackElo "2044"]
[Annotator "NA"]
[PlyCount "74"]
[EventDate "2019.08.24"]
[EventType "schev"]
[EventCountry "TUR"]
[SourceTitle "playchess.com"]
[Source "ChessBase"]
[SourceQuality "1"]
[TimeControl "5400+30"]

1. e4 {[%emt 0:00:30]} Nf6 {[%emt 0:04:30]} 2. e5 {[%emt 0:00:30]} Nd5 {[%emt 0:00:30]} 3. d4 {[%emt 0:00:00]} d6 {[%emt 0:00:30]} 4. Nf3 {[%emt 0:00:00]} Nb6 {[%emt 0:01:30]} 5. h3 {[%emt 0:01:30]} g6 {[%emt 0:00:30]} 6. Be2 {[%emt 0:01:30]} dxe5 {[%emt 0:00:30]} 7. Nxe5 {[%emt 0:00:30]} N8d7 {[%emt 0:00:00]} 8. Bf4 {[%emt 0:02:30]} Bg7 {[%emt 0:00:00]} 9. Nf3 $11 {[%emt 0:00:30]} c5 {[%emt 0:01:30]} 10. dxc5 {[%emt 0:12:30]} Na4 {[%emt 0:04:30]} 11. c3 {[%emt 0:00:00]} Naxc5 {[%emt 0:01:30]} 12. Na3 {[%emt 0:04:00]} O-O {[%emt 0:05:30]} 13. Nc4 {[%emt 0:01:30]} b5 {[%emt 0:05:30]} 14. Nce5 {[%emt 0:00:30]} Nxe5 {[%emt 0:00:30]} 15. Bxe5 {[%emt 0:06:30]} Bb7 {[%emt 0:02:30]} 16. Bxg7 {[%emt 0:02:30]} Kxg7 {[%emt 0:00:30]} 17. O-O {[%emt 0:00:30]} Bxf3 {[%emt 0:03:30]} 18. Bxf3 {[%emt 0:00:30]} Qxd1 {[%emt 0:03:30]} 19. Rfxd1 {[%emt 0:01:30]} Rad8 {[%emt 0:00:30]} 20. Be2 {[%emt 0:03:30]} a6 {[%emt 0:00:30]} 21. Rxd8 {[%emt 0:02:30]} Rxd8 {[%emt 0:03:30]} 22. b4 {[%emt 0:00:30]} Rd2 {[%emt 0:03:30]} 23. Bf1 {[%emt 0:00:30]} Nd3 {[%emt 0:02:30]} 24. a4 {[%emt 0:01:30]} bxa4 {[%emt 0:03:30]} 25. Rxa4 {[%emt 0:01:30]} Rd1 {[%emt 0:01:30]} 26. g3 {[%emt 0:03:30]} Rc1 {[%emt 0:00:30]} 27. c4 {[%emt 0:03:30]} Ne5 {[%emt 0:01:30]} 28. Kg2 {[%emt 0:02:30]} Nxc4 {[%emt 0:01:30]} 29. Rxa6 {[%emt 0:00:30]} Nd6 {[%emt 0:01:30]} 30. b5 {[%emt 0:06:30]} Rb1 {[%emt 0:00:00]} 31. Rb6 {[%emt 0:07:00]} Kf6 {[%emt 0:00:30]} 32. g4 {[%emt 0:02:30]} Ke5 {[%emt 0:03:30]} 33. Rb8 {[%emt 0:01:30]} Rb2 {[%emt 0:01:30]} 34. Rh8 {[%emt 0:03:30]} Ne4 {[%emt 0:05:30]} 35. Rxh7 {[%emt 0:00:30]} Rxf2+ {[%emt 0:05:30]} 36. Kg1 {[%emt 0:00:30]} Rf6 {[%emt 0:04:30]} 37. h4 {[%emt 0:05:30]} g5 {[%emt 0:03:30]} 1/2-1/2